fUSD/lending_fUSD_20260701
["ID","MTS","AMOUNT","RATE_DAILY","PERIOD"]
[426808194,1782854693000,265.37,0.00012974,2]
[426808202,1782854825000,155.0,0.00028529,30]
[426808203,1782854827000,155.0,0.00029529,30]
[426808204,1782854930000,383.0,0.00028529,30]
[426808205,1782854931000,383.0,0.00029529,30]
[426808209,1782855032000,-135.64355974,0.00013087,2]
[426808208,1782855032000,-157.14,0.00013083,2]
[426808210,1782855032000,-14.35644026,0.00013087,2]
[426808212,1782855032000,-203.64265123,0.000131,2]
[426808211,1782855032000,-193.0,0.00013091,2]
[426808235,1782855040000,-2000.0,0.00013326,2]
[426808230,1782855040000,-171.02734877,0.000131,2]
[426808237,1782855040000,-500.0,0.00013509,2]
[426808231,1782855040000,-183.97,0.00013284,2]
[426808233,1782855040000,-1301.12264038,0.00013296,2]
[426808236,1782855040000,-500.0,0.00013509,2]
[426808238,1782855040000,-626.17710476,0.00013509,2]
[426808242,1782855040000,-538.77336108,0.0001351,2]
[426808239,1782855040000,-150.0,0.0001351,2]
[426808232,1782855040000,-166.66,0.00013289,2]
[426808240,1782855040000,-221.27054573,0.0001351,2]
[426808241,1782855040000,-500.0,0.0001351,2]
[426808245,1782855040000,-1261.65741308,0.00013511,2]
[426808244,1782855040000,-2133.9295596,0.00013511,2]
[426808243,1782855040000,-21742.5857606,0.00013511,2]
[426808234,1782855040000,-168.83,0.00013298,2]
[426808257,1782855043000,-790.70620023,0.00013511,2]
[426808258,1782855043000,-1361.39009554,0.00013511,2]
[426808256,1782855043000,-934.38622262,0.00013511,2]
[426808254,1782855043000,-172.73403232,0.00013511,2]
[426808255,1782855043000,-1334.3382157,0.00013511,2]
[426808261,1782855046000,-462.96,0.00013511,2]
[426808272,1782855144000,166.66,0.00012637,2]
[426808271,1782855144000,166.66,0.00012377,2]
[426808273,1782855145000,166.66,0.00012898,2]
[426808275,1782855269000,2000.0,0.0001297,2]
[426808276,1782855302000,172.57,0.00030136,30]
[426808278,1782855336000,313.45,0.0001297,2]
[426808280,1782855462000,157.12,0.00012958,2]
[426808281,1782855531000,50000.0,0.00030137,34]
[426808284,1782855687000,172.53,0.00030136,30]
[426808285,1782855784000,156.0,0.00028529,30]
[426808286,1782855785000,156.0,0.00029529,30]
[426808287,1782855816000,155.0,0.00028529,30]
[426808288,1782855817000,155.0,0.00029529,30]
[426808289,1782855875000,166.66,0.00012773,2]
[426808290,1782855924000,156.0,0.00028529,30]
[426808291,1782855925000,156.0,0.00029529,30]
[426808292,1782856024000,344.0,0.00028529,30]
[426808293,1782856026000,344.0,0.00029529,30]
[426808294,1782856141000,1199.30065047,0.00030136,34]
[426808302,1782856234000,-166.66,0.00013042,2]
[426808303,1782856234000,-298.5,0.00013071,2]
[426808304,1782856234000,-1000.0,0.00013101,2]
[426808306,1782856234000,-300.0,0.00013163,2]
[426808305,1782856234000,-250.76,0.00013151,2]
[426808307,1782856234000,-166.66,0.00013311,2]
[426808308,1782856234000,-1898.42465937,0.00013383,2]
[426808310,1782856234000,-742.15486716,0.00013383,2]
[426808309,1782856234000,-944.41986732,0.00013383,2]
[426808320,1782856234000,-358.21679173,0.00013483,2]
[426808316,1782856234000,-276.50935275,0.00013482,2]
[426808317,1782856234000,-572.34382806,0.00013482,2]
[426808319,1782856234000,-25.5366853,0.00013483,2]
[426808318,1782856234000,-500.0,0.00013482,2]
[426808313,1782856234000,-180.68634497,0.00013481,2]
[426808311,1782856234000,-1861.90677243,0.00013411,2]
[426808314,1782856234000,-150.0,0.00013482,2]
[426808312,1782856234000,-250.76,0.0001348,2]
[426808315,1782856234000,-154.88938201,0.00013482,2]
[426808331,1782856238000,-586.89278139,0.00013483,2]
[426808329,1782856238000,-550.63274567,0.00013483,2]
[426808330,1782856238000,-225.36725433,0.00013483,2]
[426808343,1782856240000,-750.73999697,0.00013483,2]
[426808342,1782856240000,-3961.39745924,0.00013483,2]
[426808341,1782856240000,-6544.54012318,0.00013483,2]
[426808339,1782856240000,-694.81221228,0.00013483,2]
[426808340,1782856240000,-17928.38258524,0.00013483,2]
[426808348,1782856243000,-2441.45847064,0.00013483,2]
[426808347,1782856243000,-317.56,0.00013483,2]
[426808349,1782856243000,-790.70620023,0.00013483,2]
[426808350,1782856243000,-1361.39009554,0.00013483,2]
[426808359,1782856246000,-1394.53185209,0.00013483,2]
[426808360,1782856247000,-274.97,0.00013483,2]
[426808362,1782856329000,298.12,0.0002863,30]
[426808363,1782856330000,298.12,0.00029132,30]
[426808364,1782856331000,298.12,0.00029634,30]
[426808365,1782856332000,298.12,0.00030136,30]
[426808367,1782856337000,160.87,0.00029132,30]
[426808366,1782856337000,160.87,0.0002863,30]
[426808369,1782856338000,159.92,0.0002863,30]
[426808368,1782856338000,160.87,0.00029634,30]
[426808370,1782856339000,159.92,0.00029132,30]
[426808372,1782856340000,154.34,0.00028931,30]
[426808371,1782856340000,159.92,0.00029634,30]
[426808373,1782856342000,165.36,0.00026484,30]
[426808374,1782856361000,290.82,0.0002863,30]
[426808375,1782856361000,158.14,0.0002863,30]
[426808377,1782856362000,158.14,0.00029195,30]
[426808376,1782856362000,290.82,0.00029132,30]
[426808378,1782856363000,152.26,0.0002831,30]
[426808380,1782856429000,157.6,0.0002863,30]
[426808381,1782856430000,157.6,0.00029132,30]
[426808382,1782856433000,358.89,0.0002863,30]
[426808383,1782856434000,358.89,0.00029132,30]
[426808384,1782856498000,158.59,0.0002863,30]
[426808385,1782856498000,158.59,0.00029383,30]
[426808386,1782856505000,207.91,0.0002863,30]
[426808387,1782856506000,207.91,0.00029132,30]
[426808391,1782856575000,158.59,0.00029383,30]
[426808390,1782856575000,158.59,0.0002863,30]
[426808392,1782856580000,199.49,0.0002863,30]
[426808393,1782856581000,199.49,0.00029132,30]
[426808395,1782856643000,158.09,0.0002863,30]
[426808397,1782856647000,807.2495738,0.00028,60]
[426808398,1782856658000,223.35,0.0002863,30]
[426808399,1782856659000,223.35,0.00029132,30]
[426808400,1782856667000,1000.0,0.00012771,2]
[426808403,1782856706000,166.66,0.0001216,2]
[426808404,1782856706000,166.66,0.00012416,2]
[426808406,1782856707000,166.66,0.00012928,2]
[426808405,1782856707000,166.66,0.00012672,2]
[426808408,1782856712000,675.36,0.00012779,2]
[426808407,1782856712000,158.1,0.0002863,30]
[426808409,1782856737000,172.51,0.0002863,30]
[426808410,1782856737000,172.51,0.00029132,30]
[426808411,1782856778000,158.29,0.0002863,30]
[426808412,1782856810000,165.33,0.0002863,30]
[426808413,1782856811000,165.33,0.00029195,30]
[426808414,1782856836000,150.0,0.00012769,2]
[426808415,1782856850000,158.32,0.0002863,30]
[426808416,1782856858000,158.21,0.0002863,30]
[426808417,1782856858000,155.47,0.0002863,30]
[426808418,1782856859000,155.47,0.00029132,30]
[426808419,1782856880000,156.0,0.00028529,30]
[426808420,1782856881000,156.0,0.00029529,30]
[426808421,1782856901000,162.78,0.0002863,30]
[426808422,1782856903000,162.78,0.00029383,30]
[426808424,1782856908000,155.0,0.00029529,30]
[426808423,1782856908000,155.0,0.00028529,30]
[426808425,1782856924000,158.23,0.0002863,30]
[426808426,1782856934000,166.47,0.00012769,2]
[426808427,1782856946000,158.25,0.0002863,30]
[426808428,1782856960000,1098.0,0.00030135,30]
[426808429,1782856980000,165.26,0.0002863,30]
[426808430,1782856981000,165.26,0.00029383,30]
[426808431,1782857011000,156.0,0.00028529,30]
[426808432,1782857012000,158.29,0.0002863,30]
[426808433,1782857013000,157.0,0.00029529,30]
[426808434,1782857037000,158.25,0.0002863,30]
[426808435,1782857046000,15020.75,0.00030136,30]
[426808436,1782857049000,150.45,0.00012761,2]
[426808437,1782857052000,2000.0,0.00012746,2]
[426808438,1782857053000,160.37,0.0002863,30]
[426808439,1782857106000,158.25,0.0002863,30]
[426808440,1782857111000,310.0,0.00028529,30]
[426808441,1782857112000,310.0,0.00029529,30]
[426808442,1782857125000,158.26,0.0002863,30]
[426808443,1782857126000,159.87,0.0002863,30]
[426808444,1782857164000,235.13250643,0.00012928,2]
[426808445,1782857171000,284.13,0.0001268,2]
[426808446,1782857171000,161.53,0.0002863,30]
[426808447,1782857201000,162.17,0.0002863,30]
[426808448,1782857209000,161.15,0.0002863,30]
[426808449,1782857260000,161.27,0.0002863,30]
[426808450,1782857305000,161.36,0.0002863,30]
[426808451,1782857340000,1954.23454558,0.00030135,34]
[426808452,1782857378000,161.77,0.0002863,30]
[426808472,1782857431000,-150.0,0.00013213,2]
[426808477,1782857431000,-151.0,0.00013213,2]
[426808473,1782857431000,-150.0,0.00013213,2]
[426808470,1782857431000,-152.0,0.00013213,2]
[426808475,1782857431000,-150.0,0.00013213,2]
[426808467,1782857431000,-150.0,0.00013213,2]
[426808476,1782857431000,-151.0,0.00013213,2]
[426808471,1782857431000,-152.0,0.00013213,2]
[426808474,1782857431000,-152.0,0.00013213,2]
[426808478,1782857431000,-152.0,0.00013213,2]
[426808469,1782857431000,-151.0,0.00013213,2]
[426808468,1782857431000,-151.0,0.00013213,2]
[426808454,1782857431000,-150.0,0.00013106,2]
[426808466,1782857431000,-192.0,0.00013213,2]
[426808462,1782857431000,-152.0,0.00013213,2]
[426808463,1782857431000,-3.12678953,0.00013213,2]
[426808464,1782857431000,-147.87321047,0.00013213,2]
[426808460,1782857431000,-151.0,0.00013213,2]
[426808461,1782857431000,-152.0,0.00013213,2]
[426808459,1782857431000,-88.08287094,0.00013213,2]
[426808453,1782857431000,-150.45,0.0001308,2]
[426808457,1782857431000,-151.0,0.00013213,2]
[426808456,1782857431000,-150.0,0.00013212,2]
[426808479,1782857431000,-150.0,0.00013213,2]
[426808455,1782857431000,-166.66,0.00013184,2]
[426808458,1782857431000,-63.91712906,0.00013213,2]
[426808465,1782857431000,-151.0,0.00013213,2]
[426808480,1782857431000,-151.0,0.00013229,2]
[426808491,1782857431000,-150.0,0.00013229,2]
[426808482,1782857431000,-153.0,0.00013229,2]
[426808510,1782857431000,-2434.543209,0.00013454,2]
[426808511,1782857431000,-9035.4164705,0.00013454,2]
[426808507,1782857431000,-649.38550873,0.00013383,2]
[426808508,1782857431000,-150.45,0.00013399,2]
[426808509,1782857431000,-166.66,0.0001344,2]
[426808506,1782857431000,-2558.56007403,0.00013383,2]
[426808504,1782857431000,-500.0,0.0001338,2]
[426808505,1782857431000,-1675.71609516,0.00013383,2]
[426808483,1782857431000,-150.0,0.00013229,2]
[426808503,1782857431000,-500.0,0.0001338,2]
[426808502,1782857431000,-500.0,0.0001338,2]
[426808500,1782857431000,-500.0,0.0001338,2]
[426808499,1782857431000,-500.0,0.0001338,2]
[426808501,1782857431000,-500.0,0.0001338,2]
[426808497,1782857431000,-500.0,0.0001338,2]
[426808481,1782857431000,-151.0,0.00013229,2]
[426808495,1782857431000,-350.41329632,0.0001338,2]
[426808484,1782857431000,-152.0,0.00013229,2]
[426808488,1782857431000,-151.0,0.00013229,2]
[426808487,1782857431000,-151.0,0.00013229,2]
[426808490,1782857431000,-152.0,0.00013229,2]
[426808486,1782857431000,-152.0,0.00013229,2]
[426808492,1782857431000,-279.30832635,0.0001338,2]
[426808493,1782857431000,-500.0,0.0001338,2]
[426808494,1782857431000,-500.0,0.0001338,2]
[426808498,1782857431000,-500.0,0.0001338,2]
[426808496,1782857431000,-450.0,0.0001338,2]
[426808485,1782857431000,-150.0,0.00013229,2]
[426808519,1782857432000,-1453.73504048,0.00013483,2]
[426808521,1782857432000,-2828.10168465,0.00013483,2]
[426808520,1782857432000,-1254.41808677,0.00013483,2]
[426808517,1782857432000,-543.55654693,0.00013482,2]
[426808518,1782857432000,-300.08741186,0.00013482,2]
[426808516,1782857432000,-400.64067965,0.00013482,2]
[426808514,1782857432000,-151.0,0.0001348,2]
[426808515,1782857432000,-1171.369,0.00013482,2]
[426808512,1782857432000,-163.88,0.0001348,2]
[426808513,1782857432000,-151.0,0.0001348,2]
[426808533,1782857437000,-3915.70741571,0.00013483,2]
[426808532,1782857437000,-62067.589063,0.00013483,2]
[426808547,1782857439000,-953.0,0.00013483,2]
[426808549,1782857439000,-8030.54305015,0.00013483,2]
[426808548,1782857439000,-33993.54624324,0.00013483,2]
[426808550,1782857440000,161.46,0.0002863,30]
[426808566,1782857442000,-1361.39009554,0.00013483,2]
[426808561,1782857442000,-356.09052677,0.00013483,2]
[426808562,1782857442000,-306.74645468,0.00013483,2]
[426808567,1782857442000,-3629.38212418,0.00013483,2]
[426808565,1782857442000,-790.70620023,0.00013483,2]
[426808563,1782857442000,-6567.65308992,0.00013483,2]
[426808564,1782857442000,-3803.67602324,0.00013483,2]
[426808639,1782857445000,-9605.04396927,0.00013483,2]
[426808640,1782857446000,-1186.97379018,0.00013483,2]
[426808641,1782857485000,161.36,0.0002863,30]
[426808643,1782857491000,166.66,0.00012947,2]
[426808642,1782857491000,166.66,0.0001268,2]
[426808644,1782857514000,400.0,0.00030137,30]
[426808646,1782857530000,644.95,0.0002863,30]
[426808645,1782857530000,329.43,0.0002863,30]
[426808648,1782857531000,644.95,0.00029132,30]
[426808647,1782857531000,329.43,0.00029132,30]
[426808649,1782857531000,158.22,0.00028871,30]
[426808652,1782857532000,158.25,0.00029232,30]
[426808651,1782857532000,329.43,0.00029634,30]
[426808650,1782857532000,644.95,0.00029634,30]
[426808654,1782857533000,158.22,0.00026027,30]
[426808653,1782857533000,329.43,0.00030136,30]
[426808655,1782857553000,192.58,0.0002863,30]
[426808656,1782857554000,192.58,0.00029132,30]
[426808657,1782857554000,192.58,0.00029634,30]
[426808658,1782857555000,192.58,0.00030136,30]
[426808659,1782857575000,199.7,0.0002863,30]
[426808660,1782857575000,377.74,0.0002863,30]
[426808661,1782857576000,377.74,0.00029132,30]
[426808662,1782857577000,150.3,0.00029031,30]
[426808663,1782857620000,192.58,0.0002863,30]
[426808665,1782857621000,164.86,0.00029031,30]
[426808664,1782857621000,240.53,0.0002863,30]
[426808666,1782857622000,240.53,0.00029132,30]
[426808667,1782857666000,161.54,0.00029031,30]
[426808668,1782857694000,192.58,0.0002863,30]
[426808669,1782857696000,354.2,0.0002863,30]
[426808670,1782857697000,354.2,0.00029132,30]
[426808671,1782857710000,192.58,0.0002863,30]
[426808673,1782857737000,156.71,0.00029031,30]
[426808674,1782857755000,196.14,0.0002863,30]
[426808676,1782857756000,292.77,0.0002863,30]
[426808675,1782857756000,190.47,0.00029232,30]
[426808677,1782857757000,292.77,0.00029132,30]
[426808678,1782857797000,150.45,0.00012673,2]
[426808681,1782857802000,178.02,0.00029232,30]
[426808682,1782857820000,194.36,0.0002863,30]
[426808683,1782857837000,1000.0,0.00012733,2]
[426808684,1782857838000,213.32,0.0002863,30]
[426808685,1782857839000,213.32,0.00029132,30]
[426808686,1782857845000,192.58,0.0002863,30]
[426808687,1782857846000,169.69,0.00029232,30]
[426808688,1782857890000,153.13,0.00029232,30]
[426808689,1782857908000,194.36,0.0002863,30]
[426808690,1782857915000,227.01,0.0002863,30]
[426808691,1782857916000,227.01,0.00029132,30]
[426808692,1782857930000,183.97,0.00012704,2]
[426808693,1782857934000,166.47,0.00012704,2]
[426808694,1782857956000,162.21,0.00029232,30]
[426808695,1782857968000,156.0,0.00028528,30]
[426808696,1782857970000,156.7691721,0.00029528,30]
[426808707,1782857980000,207.91,0.0002863,30]
[426808708,1782857981000,207.91,0.00029132,30]
[426808709,1782857992000,155.0,0.00028528,30]
[426808710,1782857994000,155.0,0.00029528,30]
[426808712,1782858027000,168.49,0.00029132,30]
[426808711,1782858027000,168.49,0.0002863,30]
[426808713,1782858104000,5140.874997,0.00030136,30]
[426808714,1782858109000,158.2,0.0002863,30]
[426808715,1782858110000,158.2,0.00029132,30]
[426808716,1782858139000,162.72,0.0002863,30]
[426808717,1782858140000,162.72,0.00029195,30]
[426808718,1782858166000,2000.0,0.00012615,2]
[426808719,1782858190000,279.0,0.00028529,30]
[426808720,1782858191000,279.0,0.00029529,30]
[426808722,1782858204000,165.61,0.00029275,30]
[426808721,1782858204000,165.61,0.0002863,30]
[426808723,1782858283000,162.43,0.0002863,30]
[426808724,1782858284000,162.43,0.00029383,30]
[426808726,1782858320000,540.28,0.00012611,2]
[426808727,1782858352000,161.82,0.0002863,30]
[426808728,1782858420000,162.76,0.0002863,30]
[426808729,1782858426000,163.27,0.0002863,30]
[426808730,1782858494000,162.69,0.0002863,30]
[426808731,1782858538000,150.45,0.00012577,2]
[426808732,1782858547000,162.3,0.00012954,2]
[426808733,1782858558000,162.49,0.0002863,30]
[426808734,1782858628000,162.76,0.0002863,30]
[426808756,1782858631000,-151.0,0.00013214,2]
[426808755,1782858631000,-152.0,0.00013214,2]
[426808754,1782858631000,-152.0,0.00013214,2]
[426808753,1782858631000,-128.18523801,0.00013214,2]
[426808746,1782858631000,-151.0,0.00013214,2]
[426808747,1782858631000,-151.0,0.00013214,2]
[426808751,1782858631000,-150.0,0.00013214,2]
[426808752,1782858631000,-21.81476199,0.00013214,2]
[426808748,1782858631000,-151.0,0.00013214,2]
[426808749,1782858631000,-151.0,0.00013214,2]
[426808745,1782858631000,-150.0,0.00013214,2]
[426808743,1782858631000,-70.25315841,0.00013214,2]
[426808744,1782858631000,-80.74684159,0.00013214,2]
[426808742,1782858631000,-151.0,0.00013214,2]
[426808741,1782858631000,-151.0,0.00013214,2]
[426808759,1782858631000,-151.0,0.00013214,2]
[426808740,1782858631000,-150.0,0.00013213,2]
[426808750,1782858631000,-150.0,0.00013214,2]
[426808758,1782858631000,-153.0,0.00013214,2]
[426808777,1782858631000,-152.0,0.00013223,2]
[426808761,1782858631000,-2.67201047,0.00013214,2]
[426808757,1782858631000,-150.0,0.00013214,2]
[426808776,1782858631000,-151.0,0.00013216,2]
[426808775,1782858631000,-151.0,0.00013214,2]
[426808771,1782858631000,-150.0,0.00013214,2]
[426808774,1782858631000,-151.0,0.00013214,2]
[426808772,1782858631000,-151.0,0.00013214,2]
[426808773,1782858631000,-166.66,0.00013214,2]
[426808770,1782858631000,-151.0,0.00013214,2]
[426808778,1782858631000,-164.01140709,0.00013223,2]
[426808768,1782858631000,-150.0,0.00013214,2]
[426808764,1782858631000,-151.0,0.00013214,2]
[426808763,1782858631000,-151.0,0.00013214,2]
[426808762,1782858631000,-151.0,0.00013214,2]
[426808769,1782858631000,-151.0,0.00013214,2]
[426808765,1782858631000,-150.0,0.00013214,2]
[426808766,1782858631000,-152.0,0.00013214,2]
[426808767,1782858631000,-152.0,0.00013214,2]
[426808760,1782858631000,-149.32798953,0.00013214,2]
[426808846,1782858638000,-150.0,0.00013253,2]
[426808842,1782858638000,-389.02632967,0.00013252,2]
[426808829,1782858638000,-500.0,0.0001325,2]
[426808827,1782858638000,-500.0,0.0001325,2]
[426808820,1782858638000,-435.86614,0.0001325,2]
[426808815,1782858638000,-500.0,0.0001325,2]
[426808825,1782858638000,-500.0,0.0001325,2]
[426808819,1782858638000,-500.0,0.0001325,2]
[426808821,1782858638000,-500.0,0.0001325,2]
[426808818,1782858638000,-500.0,0.0001325,2]
[426808816,1782858638000,-500.0,0.0001325,2]
[426808844,1782858638000,-590.55077116,0.00013252,2]
[426808814,1782858638000,-500.0,0.0001325,2]
[426808810,1782858638000,-259.20868584,0.0001325,2]
[426808813,1782858638000,-500.0,0.0001325,2]
[426808809,1782858638000,-1619.58,0.00013233,2]
[426808811,1782858638000,-500.0,0.0001325,2]
[426808808,1782858638000,-15085.45,0.00013223,2]
[426808812,1782858638000,-500.0,0.0001325,2]
[426808807,1782858638000,-24241.86859291,0.00013223,2]
[426808823,1782858638000,-500.0,0.0001325,2]
[426808817,1782858638000,-500.0,0.0001325,2]
[426808848,1782858638000,-14842.7092,0.00013376,2]
[426808831,1782858638000,-500.0,0.0001325,2]
[426808887,1782858638000,-3915.70741571,0.00013476,2]
[426808883,1782858638000,-149370.11124542,0.00013476,2]
[426808881,1782858638000,-1124.86455,0.0001338,2]
[426808874,1782858638000,-1124.86455,0.0001338,2]
[426808870,1782858638000,-325.47917,0.0001338,2]
[426808850,1782858638000,-3281.69208159,0.00013376,2]
[426808872,1782858638000,-1124.86455,0.0001338,2]
[426808857,1782858638000,-151.0,0.00013379,2]
[426808879,1782858638000,-1124.86455,0.0001338,2]
[426808878,1782858638000,-1124.86455,0.0001338,2]
[426808868,1782858638000,-325.47917,0.0001338,2]
[426808876,1782858638000,-1124.86455,0.0001338,2]
[426808862,1782858638000,-325.47917,0.0001338,2]
[426808834,1782858638000,-500.0,0.0001325,2]
[426808853,1782858638000,-2662.28557041,0.00013376,2]
[426808838,1782858638000,-500.0,0.0001325,2]
[426808836,1782858638000,-500.0,0.0001325,2]
[426808855,1782858638000,-151.0,0.00013379,2]
[426808859,1782858638000,-325.47917,0.0001338,2]
[426808864,1782858638000,-325.47917,0.0001338,2]
[426808866,1782858638000,-325.47917,0.0001338,2]
[426808840,1782858638000,-500.0,0.0001325,2]
[426809030,1782858639000,-1055.73967664,0.00013476,2]
[426809426,1782858642000,-2152.0962959,0.00013476,2]
[426809424,1782858642000,-4778.31427242,0.00013476,2]
[426809422,1782858642000,-19187.08633051,0.00013476,2]
[426809441,1782858643000,182.64,0.00030136,30]
[426809428,1782858643000,-3693.60805129,0.00013476,2]
[426809433,1782858643000,-1361.39009554,0.00013476,2]
[426809431,1782858643000,-790.70620023,0.00013476,2]
[426810209,1782858649000,-280.56712925,0.00013476,2]
[426810207,1782858649000,-2208.81737551,0.00013476,2]
[426810262,1782858693000,162.93,0.0002863,30]
[426810264,1782858761000,166.66,0.0001249,2]
[426810265,1782858761000,166.66,0.00012753,2]
[426810266,1782858765000,162.81,0.0002863,30]
[426810267,1782858842000,162.65,0.0002863,30]
[426810268,1782858907000,162.93,0.0002863,30]
[426810269,1782858980000,162.65,0.0002863,30]
[426810270,1782858996000,2000.0,0.00012793,2]
[426810271,1782859043000,158.0,0.00028528,30]
[426810272,1782859044000,158.0,0.00029528,30]
[426810273,1782859066000,154.0,0.00028528,30]
[426810274,1782859067000,154.0,0.00029528,30]
[426810275,1782859129000,6860.97,0.00012603,2]
[426810276,1782859144000,168.38,0.00012603,2]
[426810278,1782859163000,171.0,0.00028528,30]
[426810279,1782859212000,345.13695438,0.00012728,2]
[426810280,1782859215000,161.05777963,0.00028528,30]
[426810281,1782859264000,359.0,0.00028528,30]
[426810282,1782859266000,359.0,0.00029528,30]
[426810283,1782859400000,200.0,0.00012626,2]
[426810286,1782859570000,243.4954522,0.00012727,2]
[426810288,1782859652000,166.66,0.00012922,2]
[426810287,1782859652000,166.66,0.00012656,2]
[426810290,1782859740000,153.12621311,0.00012808,2]
[426810289,1782859740000,2000.0,0.00030135,30]
[426810292,1782859831000,-1160.88,0.00013123,2]
[426810294,1782859831000,-2221.88310464,0.00013123,2]
[426810295,1782859831000,-500.0,0.00013137,2]
[426810293,1782859831000,-381.23189536,0.00013123,2]
[426810297,1782859831000,-166.66,0.00013189,2]
[426810299,1782859831000,-1000.0,0.00013288,2]
[426810298,1782859831000,-339.79790032,0.00013218,2]
[426810300,1782859831000,-23510.56775259,0.00013338,2]
[426810301,1782859831000,-1225.43224741,0.00013338,2]
[426810296,1782859831000,-188.55,0.00013151,2]
[426810305,1782859832000,-500.0,0.00013339,2]
[426810306,1782859832000,-334.39166957,0.00013339,2]
[426810303,1782859832000,-500.0,0.00013339,2]
[426810304,1782859832000,-500.0,0.00013339,2]
[426810302,1782859832000,-150.0,0.00013339,2]
[426810315,1782859838000,-153.0,0.0001334,2]
[426810314,1782859838000,-151.0,0.0001334,2]
[426810312,1782859838000,-3.27692197,0.00013339,2]
[426810317,1782859838000,-6174.73054277,0.0001334,2]
[426810313,1782859838000,-430.9648721,0.0001334,2]
[426810316,1782859838000,-1420.1502052,0.0001334,2]
[426810330,1782859840000,-2812.50324242,0.0001334,2]
[426810329,1782859840000,-5173.47875989,0.0001334,2]
[426810328,1782859840000,-966.14952006,0.0001334,2]
[426810383,1782859842000,-151.0,0.00013376,2]
[426810381,1782859842000,-3273.83858246,0.0001334,2]
[426810384,1782859842000,-150.0,0.00013376,2]
[426810382,1782859842000,-151.0,0.00013376,2]
[426810387,1782859842000,-901.0,0.00013388,2]
[426810388,1782859842000,-247.70453224,0.00013388,2]
[426810389,1782859842000,-413.38553981,0.00013429,2]
[426810386,1782859842000,-1692.245,0.00013376,2]
[426810385,1782859842000,-153.0,0.00013376,2]
[426810408,1782859843000,-500.85147294,0.00013698,2]
[426810407,1782859843000,-500.0,0.00013698,2]
[426810406,1782859843000,-163.78050145,0.00013667,2]
[426810409,1782859843000,-500.0,0.00013698,2]
[426810417,1782859843000,-61.18809852,0.00013698,2]
[426810415,1782859843000,-500.0,0.00013698,2]
[426810414,1782859843000,-500.0,0.00013698,2]
[426810413,1782859843000,-500.0,0.00013698,2]
[426810412,1782859843000,-500.0,0.00013698,2]
[426810400,1782859843000,-152.0,0.00013483,2]
[426810411,1782859843000,-500.0,0.00013698,2]
[426810405,1782859843000,-187.55,0.00013645,2]
[426810397,1782859843000,-490.34150435,0.00013483,2]
[426810401,1782859843000,-163.78050145,0.00013509,2]
[426810403,1782859843000,-327.5610029,0.00013511,2]
[426810402,1782859843000,-163.78050145,0.0001351,2]